[Event "Titled Tuesday Blitz August 08 Early 2023"]
[White "Rodriguez Santiago, Jaime"]
[Black "Kiseljova, Marya"]
[WhiteFideId "3100898"]
[BlackFideId "4155009"]
[WhiteElo "2295"]
[BlackElo "2208"]
[Result "0-1"]
[Round "10"]
[TimeControl "180+1"]
[Date "2023.08.08"]
[WhiteClock "0:00:12"]
[BlackClock "0:00:21"]
[Board "170"]

1. d4 {[%clk 0:03:00]}  d5 {[%clk 0:02:59]} 2. c4 {[%clk 0:03:00]}  e6 {[%clk 0:02:59]} 3. Nc3 {[%clk 0:03:01]}  Nf6 {[%clk 0:02:59]} 4. cxd5 {[%clk 0:03:01]}  exd5 {[%clk 0:03:00]} 5. Bg5 {[%clk 0:03:01]}  c6 {[%clk 0:02:59]} 6. e3 {[%clk 0:03:00]}  Bf5 {[%clk 0:02:59]} 7. Qf3 {[%clk 0:03:00]}  Bg6 {[%clk 0:02:55]} 8. Bxf6 {[%clk 0:02:59]}  Qxf6 {[%clk 0:02:52]} 9. Qxf6 {[%clk 0:02:59]}  gxf6 {[%clk 0:02:53]} 10. Nf3 {[%clk 0:02:57]}  Nd7 {[%clk 0:02:51]} 11. Nh4 {[%clk 0:02:56]}  Bb4 {[%clk 0:02:50]} 12. f4 {[%clk 0:02:54]}  Be4 {[%clk 0:02:39]} 13. Kf2 {[%clk 0:02:47]}  f5 {[%clk 0:02:36]} 14. Nxe4 {[%clk 0:02:45]}  fxe4 {[%clk 0:02:35]} 15. a3 {[%clk 0:02:43]}  Be7 {[%clk 0:02:29]} 16. Nf5 {[%clk 0:02:42]}  Nf6 {[%clk 0:02:22]} 17. h3 {[%clk 0:02:39]}  h5 {[%clk 0:02:22]} 18. Be2 {[%clk 0:02:36]}  h4 {[%clk 0:02:21]} 19. Rhc1 {[%clk 0:02:31]}  Kd7 {[%clk 0:02:20]} 20. b4 {[%clk 0:02:18]}  Rag8 {[%clk 0:02:19]} 21. Nxe7 {[%clk 0:02:10]}  Kxe7 {[%clk 0:02:19]} 22. b5 {[%clk 0:02:10]}  Kd7 {[%clk 0:02:17]} 23. bxc6+ {[%clk 0:02:10]}  bxc6 {[%clk 0:02:18]} 24. Rc5 {[%clk 0:02:05]}  Rb8 {[%clk 0:02:03]} 25. Rac1 {[%clk 0:02:00]}  Rb6 {[%clk 0:02:03]} 26. a4 {[%clk 0:01:50]}  Rc8 {[%clk 0:01:57]} 27. a5 {[%clk 0:01:48]}  Rb2 {[%clk 0:01:56]} 28. Kf1 {[%clk 0:01:41]}  Kd6 {[%clk 0:01:53]} 29. R5c2 {[%clk 0:01:23]}  Rxc2 {[%clk 0:01:50]} 30. Rxc2 {[%clk 0:01:23]}  Rb8 {[%clk 0:01:50]} 31. a6 {[%clk 0:01:21]}  Nd7 {[%clk 0:01:48]} 32. Kf2 {[%clk 0:01:12]}  Rb6 {[%clk 0:01:47]} 33. g4 {[%clk 0:01:11]}  c5 {[%clk 0:01:40]} 34. f5 {[%clk 0:00:52]}  c4 {[%clk 0:01:39]} 35. Ra2 {[%clk 0:00:45]}  Nb8 {[%clk 0:01:39]} 36. g5 {[%clk 0:00:42]}  Nxa6 {[%clk 0:01:15]} 37. g6 {[%clk 0:00:40]}  fxg6 {[%clk 0:01:13]} 38. fxg6 {[%clk 0:00:40]}  Ke7 {[%clk 0:01:06]} 39. g7 {[%clk 0:00:39]}  Kf7 {[%clk 0:01:06]} 40. Ra5 {[%clk 0:00:33]}  Rd6 {[%clk 0:00:57]} 41. g8=Q+ {[%clk 0:00:10]}  Kxg8 {[%clk 0:00:56]} 42. Ke1 {[%clk 0:00:06]}  Kf7 {[%clk 0:00:55]} 43. Kd2 {[%clk 0:00:06]}  Ke6 {[%clk 0:00:56]} 44. Kc3 {[%clk 0:00:06]}  Rb6 {[%clk 0:00:56]} 45. Bd1 {[%clk 0:00:05]}  Kd6 {[%clk 0:00:49]} 46. Bh5 {[%clk 0:00:03]}  Rb3+ {[%clk 0:00:44]} 47. Kd2 {[%clk 0:00:03]}  Rd3+ {[%clk 0:00:34]} 48. Ke2 {[%clk 0:00:03]}  Nb4 {[%clk 0:00:33]} 49. Bf7 {[%clk 0:00:03]}  c3 {[%clk 0:00:33]} 50. Rxa7 {[%clk 0:00:03]}  c2 {[%clk 0:00:31]} 51. Ra1 {[%clk 0:00:03]}  Rc3 {[%clk 0:00:23]} 52. Rc1 {[%clk 0:00:04]}  Nd3 {[%clk 0:00:20]} 53. Kd2 {[%clk 0:00:04]}  Nxc1 {[%clk 0:00:17]} 54. Kxc1 {[%clk 0:00:05]}  Rxe3 {[%clk 0:00:17]} 55. Kxc2 {[%clk 0:00:06]}  Rd3 {[%clk 0:00:17]} 56. Bh5 {[%clk 0:00:05]}  Rxd4 {[%clk 0:00:18]} 57. Bg4 {[%clk 0:00:05]}  Rd3 {[%clk 0:00:18]} 58. Kc1 {[%clk 0:00:04]}  Ke5 {[%clk 0:00:19]} 59. Kc2 {[%clk 0:00:05]}  Kf4 {[%clk 0:00:20]} 60. Kc1 {[%clk 0:00:06]}  d4 {[%clk 0:00:20]} 61. Kc2 {[%clk 0:00:07]}  Rg3 {[%clk 0:00:21]} 62. Kc1 {[%clk 0:00:08]}  Rxg4 {[%clk 0:00:21]} 63. Kc2 {[%clk 0:00:09]}  Rg3 {[%clk 0:00:18]} 64. Kc1 {[%clk 0:00:10]}  Rxh3 {[%clk 0:00:18]} 65. Kc2 {[%clk 0:00:11]}  Rg3 {[%clk 0:00:19]} 66. Kc1 {[%clk 0:00:12]}  h3 {[%clk 0:00:20]} 67. Kc2 {[%clk 0:00:12]}  Rg2+ {[%clk 0:00:20]} 68. Kc1 {[%clk 0:00:12]}  h2 {[%clk 0:00:21]} 0-1


[Site "https://www.chess.com"]

[Event "Titled Tuesday Blitz August 08 Early 2023"]
[White "LuxLinster"]
[Black "Petersson, Kjell"]
[BlackFideId "1705148"]
[WhiteElo "2259"]
[BlackElo "2189"]
[Result "1-0"]
[Round "10"]
[TimeControl "180+1"]
[Date "2023.08.08"]
[WhiteClock "0:00:09"]
[BlackClock "0:00:25"]
[Board "171"]

1. d4 {[%clk 0:03:00]}  f5 {[%clk 0:02:56]} 2. Bg5 {[%clk 0:02:59]}  h6 {[%clk 0:02:56]} 3. Bh4 {[%clk 0:02:59]}  c5 {[%clk 0:02:56]} 4. e3 {[%clk 0:02:55]}  Qb6 {[%clk 0:02:53]} 5. Nd2 {[%clk 0:02:25]}  cxd4 {[%clk 0:02:49]} 6. exd4 {[%clk 0:02:25]}  g5 {[%clk 0:02:48]} 7. Qh5+ {[%clk 0:02:17]}  Kd8 {[%clk 0:02:48]} 8. Bxg5 {[%clk 0:02:17]}  Qxd4 {[%clk 0:02:46]} 9. Be3 {[%clk 0:01:58]}  Qxb2 {[%clk 0:02:41]} 10. Rb1 {[%clk 0:01:57]}  Qxc2 {[%clk 0:02:39]} 11. Ngf3 {[%clk 0:01:51]}  Bg7 {[%clk 0:02:33]} 12. Qf7 {[%clk 0:01:24]}  Qc3 {[%clk 0:02:15]} 13. Bb5 {[%clk 0:01:10]}  Qf6 {[%clk 0:02:13]} 14. Qb3 {[%clk 0:01:04]}  Nc6 {[%clk 0:02:07]} 15. O-O {[%clk 0:01:02]}  e6 {[%clk 0:01:57]} 16. Rfd1 {[%clk 0:00:55]}  Nge7 {[%clk 0:01:56]} 17. Nc4 {[%clk 0:00:51]}  Ke8 {[%clk 0:01:47]} 18. Nd6+ {[%clk 0:00:49]}  Kf8 {[%clk 0:01:46]} 19. Nxc8 {[%clk 0:00:39]}  Rxc8 {[%clk 0:01:43]} 20. Rxd7 {[%clk 0:00:39]}  Na5 {[%clk 0:01:24]} 21. Qa3 {[%clk 0:00:30]}  b6 {[%clk 0:01:22]} 22. Rxa7 {[%clk 0:00:26]}  Kf7 {[%clk 0:01:14]} 23. Bxb6 {[%clk 0:00:25]}  Nc6 {[%clk 0:01:06]} 24. Bxc6 {[%clk 0:00:20]}  Rxc6 {[%clk 0:01:07]} 25. Bd4 {[%clk 0:00:20]}  e5 {[%clk 0:01:02]} 26. Nxe5+ {[%clk 0:00:18]}  Kg8 {[%clk 0:00:53]} 27. Qxe7 {[%clk 0:00:13]}  Qxe7 {[%clk 0:00:46]} 28. Rxe7 {[%clk 0:00:14]}  Rc8 {[%clk 0:00:40]} 29. g3 {[%clk 0:00:11]}  Bxe5 {[%clk 0:00:29]} 30. Bxe5 {[%clk 0:00:11]}  Rh7 {[%clk 0:00:30]} 31. Rxh7 {[%clk 0:00:11]}  Kxh7 {[%clk 0:00:30]} 32. a4 {[%clk 0:00:09]}  Ra8 {[%clk 0:00:30]} 33. Ra1 {[%clk 0:00:09]}  Kg6 {[%clk 0:00:29]} 34. a5 {[%clk 0:00:09]}  Kf7 {[%clk 0:00:30]} 35. a6 {[%clk 0:00:09]}  Ke6 {[%clk 0:00:31]} 36. Bf4 {[%clk 0:00:08]}  Kd5 {[%clk 0:00:29]} 37. a7 {[%clk 0:00:09]}  Ke4 {[%clk 0:00:25]} 38. Bb8 {[%clk 0:00:09]} 1-0


[Site "https://www.chess.com"]

[Event "Titled Tuesday Blitz August 08 Early 2023"]
[White "Sarkar, Justin"]
[Black "Grigoryan, Meri"]
[WhiteFideId "2010011"]
[BlackFideId "13300571"]
[WhiteElo "2222"]
[BlackElo "2160"]
[Result "1-0"]
[Round "10"]
[TimeControl "180+1"]
[Date "2023.08.08"]
[WhiteClock "0:00:50"]
[BlackClock "0:00:16"]
[Board "173"]

1. d4 {[%clk 0:02:56]}  d5 {[%clk 0:02:59]} 2. c4 {[%clk 0:02:55]}  e5 {[%clk 0:02:58]} 3. dxe5 {[%clk 0:02:52]}  d4 {[%clk 0:02:58]} 4. e4 {[%clk 0:02:48]}  Nc6 {[%clk 0:02:52]} 5. Nf3 {[%clk 0:02:39]}  Nge7 {[%clk 0:02:48]} 6. Be2 {[%clk 0:02:30]}  Ng6 {[%clk 0:02:47]} 7. Bg5 {[%clk 0:02:27]}  Bb4+ {[%clk 0:02:18]} 8. Nbd2 {[%clk 0:02:24]}  f6 {[%clk 0:02:18]} 9. exf6 {[%clk 0:02:18]}  gxf6 {[%clk 0:02:18]} 10. Bh6 {[%clk 0:02:17]}  Qe7 {[%clk 0:01:58]} 11. O-O {[%clk 0:01:57]}  Rg8 {[%clk 0:01:43]} 12. a3 {[%clk 0:01:47]}  Bd6 {[%clk 0:01:30]} 13. Kh1 {[%clk 0:01:38]}  Bf4 {[%clk 0:00:57]} 14. Bxf4 {[%clk 0:01:26]}  Nxf4 {[%clk 0:00:58]} 15. g3 {[%clk 0:01:26]}  Qg7 {[%clk 0:00:49]} 16. Nh4 {[%clk 0:01:16]}  Nxe2 {[%clk 0:00:35]} 17. Qxe2 {[%clk 0:01:16]}  Bh3 {[%clk 0:00:35]} 18. Nf5 {[%clk 0:00:58]}  Qd7 {[%clk 0:00:30]} 19. Qh5+ {[%clk 0:00:55]}  Qf7 {[%clk 0:00:20]} 20. Qxh3 {[%clk 0:00:54]}  Ne5 {[%clk 0:00:16]} 21. Nh6 {[%clk 0:00:50]} 1-0


[Site "https://www.chess.com"]

[Event "Titled Tuesday Blitz August 08 Early 2023"]
[White "Joshi, Pankaj"]
[Black "Nikulina, Alena"]
[WhiteFideId "5006210"]
[BlackFideId "4172051"]
[WhiteElo "2218"]
[BlackElo "2054"]
[Result "0-1"]
[Round "10"]
[TimeControl "180+1"]
[Date "2023.08.08"]
[WhiteClock "0:01:29"]
[BlackClock "0:00:53"]
[Board "174"]

1. d4 {[%clk 0:02:55]}  d5 {[%clk 0:02:59]} 2. Nc3 {[%clk 0:02:55]}  Nf6 {[%clk 0:02:58]} 3. Bf4 {[%clk 0:02:53]}  c6 {[%clk 0:02:55]} 4. e3 {[%clk 0:02:53]}  e6 {[%clk 0:02:53]} 5. Bd3 {[%clk 0:02:53]}  Bd6 {[%clk 0:02:53]} 6. Nf3 {[%clk 0:02:53]}  Bxf4 {[%clk 0:02:48]} 7. exf4 {[%clk 0:02:54]}  O-O {[%clk 0:02:39]} 8. Ne2 {[%clk 0:02:52]}  c5 {[%clk 0:02:32]} 9. c3 {[%clk 0:02:52]}  cxd4 {[%clk 0:02:21]} 10. cxd4 {[%clk 0:02:50]}  Qa5+ {[%clk 0:02:16]} 11. Qd2 {[%clk 0:02:48]}  Qxd2+ {[%clk 0:02:15]} 12. Nxd2 {[%clk 0:02:43]}  Nc6 {[%clk 0:02:15]} 13. Nf3 {[%clk 0:02:42]}  Nb4 {[%clk 0:02:07]} 14. Bb1 {[%clk 0:02:40]}  Bd7 {[%clk 0:02:06]} 15. a3 {[%clk 0:02:39]}  Nc6 {[%clk 0:02:06]} 16. O-O {[%clk 0:02:37]}  Na5 {[%clk 0:02:02]} 17. Bd3 {[%clk 0:02:33]}  Rac8 {[%clk 0:01:55]} 18. Ne5 {[%clk 0:02:24]}  Nb3 {[%clk 0:01:46]} 19. Rad1 {[%clk 0:02:16]}  Ba4 {[%clk 0:01:44]} 20. Nc3 {[%clk 0:02:12]}  Bc6 {[%clk 0:01:30]} 21. Bc2 {[%clk 0:02:12]}  Na5 {[%clk 0:01:26]} 22. b4 {[%clk 0:02:10]}  Nc4 {[%clk 0:01:25]} 23. Bb3 {[%clk 0:01:43]}  Nxa3 {[%clk 0:01:22]} 24. Ra1 {[%clk 0:01:43]}  Nb5 {[%clk 0:00:57]} 25. Nxb5 {[%clk 0:01:39]}  Bxb5 {[%clk 0:00:56]} 26. Rfc1 {[%clk 0:01:35]}  a6 {[%clk 0:00:53]} 27. Nd3 {[%clk 0:01:29]} 0-1


[Site "https://www.chess.com"]

[Event "Titled Tuesday Blitz August 08 Early 2023"]
[White "Steindl, Johannes"]
[Black "Osiecki, Stanislaw"]
[WhiteFideId "1643266"]
[BlackFideId "1102990"]
[WhiteElo "2267"]
[BlackElo "2010"]
[Result "1-0"]
[Round "10"]
[TimeControl "180+1"]
[Date "2023.08.08"]
[WhiteClock "0:00:01"]
[BlackClock "0:00:00"]
[Board "176"]

1. e4 {[%clk 0:03:00]}  e6 {[%clk 0:02:53]} 2. d4 {[%clk 0:02:57]}  d5 {[%clk 0:02:53]} 3. Nd2 {[%clk 0:02:56]}  c5 {[%clk 0:02:51]} 4. exd5 {[%clk 0:02:55]}  exd5 {[%clk 0:02:51]} 5. Ngf3 {[%clk 0:02:53]}  cxd4 {[%clk 0:02:51]} 6. Nb3 {[%clk 0:02:51]}  Nc6 {[%clk 0:02:51]} 7. Nbxd4 {[%clk 0:02:48]}  Bd6 {[%clk 0:02:50]} 8. Bb5 {[%clk 0:02:45]}  Bd7 {[%clk 0:02:49]} 9. O-O {[%clk 0:02:45]}  Nge7 {[%clk 0:02:49]} 10. b3 {[%clk 0:02:17]}  O-O {[%clk 0:02:44]} 11. Bb2 {[%clk 0:02:15]}  a6 {[%clk 0:02:42]} 12. Bd3 {[%clk 0:02:08]}  Nxd4 {[%clk 0:02:41]} 13. Nxd4 {[%clk 0:02:04]}  Nc6 {[%clk 0:02:38]} 14. Qh5 {[%clk 0:01:52]}  g6 {[%clk 0:02:36]} 15. Nxc6 {[%clk 0:01:34]}  gxh5 {[%clk 0:02:09]} 16. Nxd8 {[%clk 0:01:33]}  Raxd8 {[%clk 0:02:09]} 17. Bd4 {[%clk 0:01:14]}  Rfe8 {[%clk 0:02:06]} 18. Rfe1 {[%clk 0:01:09]}  Rxe1+ {[%clk 0:02:04]} 19. Rxe1 {[%clk 0:01:10]}  Re8 {[%clk 0:02:03]} 20. Rxe8+ {[%clk 0:01:06]}  Bxe8 {[%clk 0:02:03]} 21. g3 {[%clk 0:01:04]}  Bd7 {[%clk 0:01:50]} 22. Kg2 {[%clk 0:00:52]}  Be7 {[%clk 0:01:41]} 23. h4 {[%clk 0:00:44]}  Bg4 {[%clk 0:01:36]} 24. f3 {[%clk 0:00:39]}  Be6 {[%clk 0:01:34]} 25. a4 {[%clk 0:00:37]}  f5 {[%clk 0:01:27]} 26. f4 {[%clk 0:00:35]}  Kf8 {[%clk 0:01:17]} 27. Be2 {[%clk 0:00:35]}  Bf7 {[%clk 0:01:16]} 28. Kf2 {[%clk 0:00:31]}  Ke8 {[%clk 0:01:16]} 29. Ke3 {[%clk 0:00:30]}  Kd7 {[%clk 0:01:15]} 30. Bb6 {[%clk 0:00:20]}  Kc6 {[%clk 0:01:14]} 31. Bd4 {[%clk 0:00:17]}  Ba3 {[%clk 0:01:11]} 32. Bf3 {[%clk 0:00:16]}  Bc1+ {[%clk 0:01:11]} 33. Kd3 {[%clk 0:00:16]}  Kd7 {[%clk 0:00:45]} 34. c3 {[%clk 0:00:07]}  Ba3 {[%clk 0:00:40]} 35. b4 {[%clk 0:00:07]}  a5 {[%clk 0:00:34]} 36. bxa5 {[%clk 0:00:04]}  Bd6 {[%clk 0:00:25]} 37. Kc2 {[%clk 0:00:04]}  Bc7 {[%clk 0:00:24]} 38. Be2 {[%clk 0:00:04]}  Bxa5 {[%clk 0:00:24]} 39. Bb5+ {[%clk 0:00:05]}  Kd6 {[%clk 0:00:23]} 40. Kd3 {[%clk 0:00:04]}  Bd8 {[%clk 0:00:20]} 41. Be5+ {[%clk 0:00:03]}  Ke6 {[%clk 0:00:19]} 42. Bd4 {[%clk 0:00:03]}  Ba5 {[%clk 0:00:19]} 43. Bf2 {[%clk 0:00:03]}  Bd8 {[%clk 0:00:19]} 44. Bc5 {[%clk 0:00:01]}  Ba5 {[%clk 0:00:19]} 45. Kd4 {[%clk 0:00:01]}  Bc7 {[%clk 0:00:16]} 46. Kd3 {[%clk 0:00:02]}  Ba5 {[%clk 0:00:16]} 47. Bd4 {[%clk 0:00:02]}  Bc7 {[%clk 0:00:17]} 48. Bf2 {[%clk 0:00:02]}  Ba5 {[%clk 0:00:17]} 49. c4 {[%clk 0:00:02]}  dxc4+ {[%clk 0:00:12]} 50. Bxc4+ {[%clk 0:00:03]}  Ke7 {[%clk 0:00:12]} 51. Bc5+ {[%clk 0:00:03]}  Kf6 {[%clk 0:00:12]} 52. Bd4+ {[%clk 0:00:04]}  Ke7 {[%clk 0:00:12]} 53. Bxf7 {[%clk 0:00:04]}  Kxf7 {[%clk 0:00:12]} 54. Bf2 {[%clk 0:00:04]}  Ke6 {[%clk 0:00:11]} 55. Kc4 {[%clk 0:00:05]}  Kd7 {[%clk 0:00:11]} 56. Kb5 {[%clk 0:00:05]}  Bc7 {[%clk 0:00:12]} 57. a5 {[%clk 0:00:05]}  Kc8 {[%clk 0:00:12]} 58. Be1 {[%clk 0:00:05]}  Kd7 {[%clk 0:00:12]} 59. Kc5 {[%clk 0:00:06]}  Ke6 {[%clk 0:00:10]} 60. Kd4 {[%clk 0:00:05]}  Kd6 {[%clk 0:00:07]} 61. Bb4+ {[%clk 0:00:04]}  Kc6 {[%clk 0:00:08]} 62. Be1 {[%clk 0:00:03]}  Kb5 {[%clk 0:00:07]} 63. Kd5 {[%clk 0:00:03]}  Bxa5 {[%clk 0:00:07]} 64. Bf2 {[%clk 0:00:03]}  Bc7 {[%clk 0:00:06]} 65. Ke6 {[%clk 0:00:02]}  Kc4 {[%clk 0:00:02]} 66. Kxf5 {[%clk 0:00:02]}  b5 {[%clk 0:00:03]} 67. Be1 {[%clk 0:00:01]}  Bd6 {[%clk 0:00:01]} 68. Ke6 {[%clk 0:00:02]}  Bb4 {[%clk 0:00:00]} 69. Bf2 {[%clk 0:00:01]} 1-0


[Site "https://www.chess.com"]

[Event "Titled Tuesday Blitz August 08 Early 2023"]
[White "Carlsen, Magnus"]
[Black "Andreikin, Dmitry"]
[WhiteFideId "1503014"]
[BlackFideId "4158814"]
[WhiteElo "3248"]
[BlackElo "3012"]
[Result "1/2-1/2"]
[Round "11"]
[TimeControl "180+1"]
[Date "2023.08.08"]
[WhiteClock "0:00:08"]
[BlackClock "0:00:06"]
[Board "1"]

1. Nf3 {[%clk 0:03:00]}  b5 {[%clk 0:02:59]} 2. e4 {[%clk 0:03:00]}  Bb7 {[%clk 0:02:59]} 3. Bxb5 {[%clk 0:03:00]}  Bxe4 {[%clk 0:02:59]} 4. d4 {[%clk 0:02:57]}  c6 {[%clk 0:02:57]} 5. Bd3 {[%clk 0:02:57]}  Bxf3 {[%clk 0:02:53]} 6. Qxf3 {[%clk 0:02:57]}  Nf6 {[%clk 0:02:54]} 7. c4 {[%clk 0:02:52]}  e6 {[%clk 0:02:51]} 8. Nc3 {[%clk 0:02:51]}  d5 {[%clk 0:02:51]} 9. O-O {[%clk 0:02:49]}  Bd6 {[%clk 0:02:48]} 10. cxd5 {[%clk 0:02:41]}  cxd5 {[%clk 0:02:46]} 11. Nb5 {[%clk 0:02:40]}  O-O {[%clk 0:02:36]} 12. Nxd6 {[%clk 0:01:57]}  Qxd6 {[%clk 0:02:36]} 13. Bf4 {[%clk 0:01:40]}  Qb6 {[%clk 0:02:34]} 14. Qe3 {[%clk 0:01:41]}  Nc6 {[%clk 0:02:29]} 15. Bd6 {[%clk 0:01:41]}  Rfc8 {[%clk 0:02:14]} 16. Bc5 {[%clk 0:01:39]}  Qb7 {[%clk 0:02:08]} 17. b4 {[%clk 0:01:38]}  a6 {[%clk 0:02:05]} 18. a3 {[%clk 0:01:36]}  Nd7 {[%clk 0:01:58]} 19. Rab1 {[%clk 0:01:36]}  g6 {[%clk 0:01:52]} 20. Rfc1 {[%clk 0:01:34]}  Nxc5 {[%clk 0:01:27]} 21. dxc5 {[%clk 0:01:34]}  Qb8 {[%clk 0:01:15]} 22. Qd2 {[%clk 0:01:28]}  Qe5 {[%clk 0:01:11]} 23. a4 {[%clk 0:01:27]}  Qd4 {[%clk 0:01:10]} 24. Qe3 {[%clk 0:01:20]}  Qxe3 {[%clk 0:00:56]} 25. fxe3 {[%clk 0:01:20]}  Ne5 {[%clk 0:00:44]} 26. Be2 {[%clk 0:01:19]}  Kf8 {[%clk 0:00:43]} 27. Kf1 {[%clk 0:01:14]}  Ke7 {[%clk 0:00:43]} 28. b5 {[%clk 0:01:14]}  axb5 {[%clk 0:00:42]} 29. axb5 {[%clk 0:01:15]}  Nd7 {[%clk 0:00:39]} 30. c6 {[%clk 0:01:12]}  Nb6 {[%clk 0:00:39]} 31. Rb4 {[%clk 0:01:09]}  f5 {[%clk 0:00:36]} 32. g4 {[%clk 0:01:09]}  Kd6 {[%clk 0:00:35]} 33. gxf5 {[%clk 0:01:09]}  gxf5 {[%clk 0:00:31]} 34. Rh4 {[%clk 0:01:09]}  Rc7 {[%clk 0:00:32]} 35. Bd3 {[%clk 0:01:09]}  Ra3 {[%clk 0:00:31]} 36. Ke2 {[%clk 0:01:09]}  Rg7 {[%clk 0:00:31]} 37. Rh6 {[%clk 0:01:02]}  Rg2+ {[%clk 0:00:16]} 38. Kf3 {[%clk 0:00:59]}  Raa2 {[%clk 0:00:11]} 39. Rf1 {[%clk 0:00:59]}  Rxh2 {[%clk 0:00:12]} 40. Rxh2 {[%clk 0:00:54]}  Rxh2 {[%clk 0:00:13]} 41. Rg1 {[%clk 0:00:53]}  Rh3+ {[%clk 0:00:12]} 42. Ke2 {[%clk 0:00:52]}  Rh2+ {[%clk 0:00:12]} 43. Ke1 {[%clk 0:00:51]}  Rh3 {[%clk 0:00:11]} 44. Kd2 {[%clk 0:00:51]}  Rh2+ {[%clk 0:00:11]} 45. Kc3 {[%clk 0:00:52]}  Rh3 {[%clk 0:00:08]} 46. Kb4 {[%clk 0:00:34]}  Rxe3 {[%clk 0:00:08]} 47. Ka5 {[%clk 0:00:35]}  Nc8 {[%clk 0:00:07]} 48. Rg8 {[%clk 0:00:33]}  Kc7 {[%clk 0:00:05]} 49. Bc2 {[%clk 0:00:24]}  Rc3 {[%clk 0:00:04]} 50. Bd1 {[%clk 0:00:22]}  Rc1 {[%clk 0:00:04]} 51. Bh5 {[%clk 0:00:22]}  Ra1+ {[%clk 0:00:03]} 52. Kb4 {[%clk 0:00:22]}  Rb1+ {[%clk 0:00:03]} 53. Kc5 {[%clk 0:00:22]}  Rc1+ {[%clk 0:00:02]} 54. Kd4 {[%clk 0:00:22]}  Nd6 {[%clk 0:00:02]} 55. Rg7+ {[%clk 0:00:15]}  Kb6 {[%clk 0:00:02]} 56. Ke5 {[%clk 0:00:15]}  Nxb5 {[%clk 0:00:02]} 57. Kxe6 {[%clk 0:00:16]}  Rxc6+ {[%clk 0:00:02]} 58. Kxf5 {[%clk 0:00:16]}  d4 {[%clk 0:00:02]} 59. Rxh7 {[%clk 0:00:15]}  Rc5+ {[%clk 0:00:03]} 60. Ke4 {[%clk 0:00:13]}  Rc3 {[%clk 0:00:04]} 61. Bg6 {[%clk 0:00:08]}  Kc5 {[%clk 0:00:04]} 62. Rh8 {[%clk 0:00:06]}  Re3+ {[%clk 0:00:04]} 63. Kf4 {[%clk 0:00:07]}  Nc3 {[%clk 0:00:04]} 64. Rc8+ {[%clk 0:00:07]}  Kb4 {[%clk 0:00:04]} 65. Rd8 {[%clk 0:00:07]}  Ne2+ {[%clk 0:00:04]} 66. Kg5 {[%clk 0:00:08]}  Kc3 {[%clk 0:00:04]} 67. Rc8+ {[%clk 0:00:08]}  Kd2 {[%clk 0:00:04]} 68. Rd8 {[%clk 0:00:09]}  Rg3+ {[%clk 0:00:05]} 69. Kf6 {[%clk 0:00:09]}  Ke3 {[%clk 0:00:05]} 70. Re8+ {[%clk 0:00:10]}  Kd2 {[%clk 0:00:05]} 71. Rd8 {[%clk 0:00:11]}  Re3 {[%clk 0:00:05]} 72. Ra8 {[%clk 0:00:09]}  Rf3+ {[%clk 0:00:05]} 73. Ke5 {[%clk 0:00:09]}  Re3+ {[%clk 0:00:05]} 74. Kf6 {[%clk 0:00:09]}  Nc3 {[%clk 0:00:05]} 75. Rd8 {[%clk 0:00:09]}  Ne4+ {[%clk 0:00:05]} 76. Ke5 {[%clk 0:00:07]}  Nc3+ {[%clk 0:00:04]} 77. Kxd4 {[%clk 0:00:04]}  Ne2+ {[%clk 0:00:05]} 78. Kc5+ {[%clk 0:00:05]}  Ke1 {[%clk 0:00:05]} 79. Rh8 {[%clk 0:00:05]}  Rc3+ {[%clk 0:00:05]} 80. Kd5 {[%clk 0:00:04]}  Rg3 {[%clk 0:00:06]} 81. Bf5 {[%clk 0:00:03]}  Rg5 {[%clk 0:00:05]} 82. Ke5 {[%clk 0:00:03]}  Ng3 {[%clk 0:00:05]} 83. Kf4 {[%clk 0:00:04]}  Rxf5+ {[%clk 0:00:05]} 84. Kxg3 {[%clk 0:00:05]}  Ra5 {[%clk 0:00:06]} 85. Rh1+ {[%clk 0:00:05]}  Ke2 {[%clk 0:00:06]} 86. Rh2+ {[%clk 0:00:05]}  Ke3 {[%clk 0:00:07]} 87. Rg2 {[%clk 0:00:06]}  Rg5+ {[%clk 0:00:06]} 88. Kh2 {[%clk 0:00:07]}  Rxg2+ {[%clk 0:00:06]} 89. Kxg2 {[%clk 0:00:08]} 1/2-1/2


[Site "https://www.chess.com"]

[Event "Titled Tuesday Blitz August 08 Early 2023"]
[White "Fedoseev, Vladimir"]
[Black "Yeletsky, Ivan"]
[WhiteFideId "24130737"]
[BlackFideId "24180327"]
[WhiteElo "3099"]
[BlackElo "2899"]
[Result "1/2-1/2"]
[Round "11"]
[TimeControl "180+1"]
[Date "2023.08.08"]
[WhiteClock "0:00:12"]
[BlackClock "0:01:02"]
[Board "2"]

1. e4 {[%clk 0:02:58]}  c5 {[%clk 0:02:58]} 2. Nf3 {[%clk 0:02:57]}  d6 {[%clk 0:02:59]} 3. d4 {[%clk 0:02:54]}  cxd4 {[%clk 0:03:00]} 4. Qxd4 {[%clk 0:02:51]}  Nc6 {[%clk 0:02:59]} 5. Qe3 {[%clk 0:02:49]}  g6 {[%clk 0:02:59]} 6. Nc3 {[%clk 0:02:47]}  Bg7 {[%clk 0:02:59]} 7. h3 {[%clk 0:02:43]}  Nf6 {[%clk 0:02:58]} 8. Bc4 {[%clk 0:02:39]}  O-O {[%clk 0:02:58]} 9. O-O {[%clk 0:02:38]}  a6 {[%clk 0:02:50]} 10. a4 {[%clk 0:02:28]}  Nd7 {[%clk 0:02:31]} 11. Nd5 {[%clk 0:02:25]}  e6 {[%clk 0:02:31]} 12. Nf4 {[%clk 0:02:23]}  Qc7 {[%clk 0:02:28]} 13. c3 {[%clk 0:02:22]}  Nde5 {[%clk 0:02:21]} 14. Be2 {[%clk 0:02:14]}  Nxf3+ {[%clk 0:02:19]} 15. Qxf3 {[%clk 0:02:12]}  Rb8 {[%clk 0:02:19]} 16. h4 {[%clk 0:02:04]}  h6 {[%clk 0:02:18]} 17. Qg3 {[%clk 0:02:00]}  b5 {[%clk 0:02:18]} 18. axb5 {[%clk 0:01:58]}  axb5 {[%clk 0:02:18]} 19. Nd3 {[%clk 0:01:54]}  b4 {[%clk 0:02:10]} 20. h5 {[%clk 0:01:50]}  bxc3 {[%clk 0:02:08]} 21. hxg6 {[%clk 0:01:37]}  Nd4 {[%clk 0:02:00]} 22. Bh5 {[%clk 0:01:22]}  fxg6 {[%clk 0:01:59]} 23. Qxg6 {[%clk 0:01:22]}  Nb3 {[%clk 0:01:57]} 24. Ra3 {[%clk 0:01:12]}  Nxc1 {[%clk 0:01:56]} 25. Rxc1 {[%clk 0:01:01]}  Kh8 {[%clk 0:01:43]} 26. Raxc3 {[%clk 0:00:59]}  Bxc3 {[%clk 0:01:38]} 27. Qxh6+ {[%clk 0:00:58]}  Kg8 {[%clk 0:01:39]} 28. Rxc3 {[%clk 0:00:58]}  Qg7 {[%clk 0:01:39]} 29. Qd2 {[%clk 0:00:54]}  Rb5 {[%clk 0:01:29]} 30. Nf4 {[%clk 0:00:52]}  Rg5 {[%clk 0:01:22]} 31. Qxd6 {[%clk 0:00:38]}  e5 {[%clk 0:01:22]} 32. Rxc8 {[%clk 0:00:20]}  Rxc8 {[%clk 0:01:22]} 33. Qe6+ {[%clk 0:00:21]}  Kh7 {[%clk 0:01:23]} 34. Qxc8 {[%clk 0:00:21]}  exf4 {[%clk 0:01:22]} 35. Bf3 {[%clk 0:00:22]}  Ra5 {[%clk 0:01:11]} 36. Qc1 {[%clk 0:00:18]}  Qe5 {[%clk 0:01:10]} 37. Kh2 {[%clk 0:00:14]}  Rb5 {[%clk 0:01:10]} 38. Qc4 {[%clk 0:00:13]}  Rxb2 {[%clk 0:01:09]} 39. Qf7+ {[%clk 0:00:13]}  Kh6 {[%clk 0:01:09]} 40. Qf8+ {[%clk 0:00:13]}  Kg6 {[%clk 0:01:07]} 41. Qg8+ {[%clk 0:00:12]}  Kh6 {[%clk 0:01:07]} 42. Qf8+ {[%clk 0:00:12]}  Kg6 {[%clk 0:01:05]} 43. Qg8+ {[%clk 0:00:12]}  Kh6 {[%clk 0:01:02]} 44. Qf8+ {[%clk 0:00:12]} 1/2-1/2


[Site "https://www.chess.com"]